bitfinex-derivatives/quotes_SOLF0:USTF0_20250929
["timestamp","ask_amount","ask_price","bid_price","bid_amount"]
[1759156247747,4.2725,210.53,210.41,11.9048]
[1759156248052,7.45,210.55,210.43,4.2745]
[1759156248549,4.2723,210.54,210.43,4.2745]
[1759156249847,127.95,210.55,210.43,4.2745]
[1759156250442,4.2725,210.53,210.43,4.2745]
[1759156250851,127.95,210.55,210.43,4.2745]
[1759156251752,120.5,210.59,210.46,7.63]
[1759156252049,7.45,210.55,210.46,7.63]
[1759156252648,11.7223,210.55,210.46,7.63]
[1759156253154,127.95,210.59,210.48,5.46955901]
[1759156253453,7.45,210.59,210.49,7.63]
[1759156253649,7.45,210.59,210.52,5.46955901]
[1759156256149,7.45,210.59,210.5,5.46955901]
[1759156256351,7.45,210.59,210.49,7.63]
[1759156257153,11.7215,210.59,210.49,11.9031]
[1759156259260,7.45,210.59,210.49,7.63]
[1759156260254,7.45,210.59,210.51,4.2727]
[1759156262063,7.68,210.65,210.51,7.8]
[1759156262458,7.68,210.65,210.55,7.8]
[1759156263257,7.68,210.65,210.55,12.0721]
[1759156263866,128.12,210.69,210.55,7.8]
[1759156264166,128.12,210.69,210.59,7.8]
[1759156264167,7.68,210.69,210.59,7.8]
[1759156265259,66.4221,210.66,210.55,7.8]
[1759156265466,7.68,210.65,210.5,7.8]
[1759156265666,4.2713,210.59,210.5,7.8]
[1759156266261,7.68,210.6,210.52,4.2725]
[1759156266460,7.68,210.6,210.5,7.8]
[1759156266655,7.68,210.64,210.51,66.4681]
[1759156266855,7.68,210.64,210.56,4.2718]
[1759156267255,7.68,210.64,210.54,7.8]
[1759156267461,7.68,210.64,210.56,4.2717]
[1759156268062,47.82,210.66,210.54,7.8]
[1759156268266,47.82,210.66,210.57,7.8]
[1759156268469,7.68,210.69,210.62,4.2705]
[1759156268662,7.68,210.72,210.6,7.8]
[1759156269165,7.68,210.72,210.61,66.4364]
[1759156269465,7.68,210.72,210.62,7.8]
[1759156269658,7.68,210.72,210.65,4.2699]
[1759156269860,0.91303187,210.76,210.64,74.2263]
[1759156270066,0.91303187,210.76,210.64,7.8]
[1759156270563,0.91303187,210.76,210.65,66.4234]
[1759156270766,0.91303187,210.76,210.66,7.8]
[1759156270965,128.08,210.77,210.69,7.8]
[1759156271268,7.68,210.82,210.69,74.211]
[1759156271459,4.2669,210.81,210.72,4.2685]
[1759156273064,7.68,210.82,210.72,4.2685]
[1759156273264,7.68,210.86,210.72,7.8]
[1759156273471,7.68,210.81,210.72,7.8]
[1759156273659,7.68,210.81,210.68,13.05902512]
[1759156274575,4.2671,210.8,210.68,13.05902512]
[1759156274863,4.2671,210.8,210.7,4.269]
[1759156275064,7.68,210.81,210.71,7.74]
[1759156275271,7.8,210.87,210.74,4.2681]
[1759156275471,7.8,210.87,210.74,12.0081]
[1759156275769,4.266,210.86,210.74,7.74]
[1759156275970,7.8,210.87,210.74,7.74]
[1759156276370,7.8,210.87,210.75,4.268]
[1759156276571,7.8,210.87,210.74,7.74]
[1759156276772,7.8,210.87,210.75,66.3915]
[1759156276959,7.8,210.87,210.77,4.2675]
[1759156277165,7.8,210.87,210.78,7.74]
[1759156277961,120.34,210.88,210.78,7.74]
[1759156278162,7.8,210.91,210.8,4.267]
[1759156278366,7.8,210.91,210.78,7.74]
[1759156278768,74.1427,210.91,210.78,7.74]
[1759156279470,12.0649,210.91,210.78,7.74]
[1759156279868,7.8,210.91,210.78,16.52962512]
[1759156280269,7.8,210.91,210.79,66.3798]
[1759156280572,7.8,210.91,210.81,7.74]
[1759156280970,7.8,210.91,210.83,4.2664]
[1759156281370,7.8,210.91,210.81,7.74]
[1759156282880,60.32,210.94,210.83,4.2664]
[1759156283174,60.32,210.94,210.84,7.74]
[1759156283773,60.32,210.94,210.85,4.266]
[1759156283981,60.32,210.94,210.84,7.74]
[1759156284865,60.32,210.94,210.87,4.2655]
[1759156285373,7.69,211.01,210.88,7.93]
[1759156285775,7.69,211.01,210.93,4.2644]
[1759156286074,7.69,211.01,210.93,14.12038898]
[1759156286273,7.69,211.01,210.92,7.93]
[1759156286773,7.69,211.01,210.95,4.264]
[1759156287474,7.69,211.01,210.88,8.78962512]
[1759156288071,7.69,211.01,210.87,7.93]
[1759156288072,7.69,211.01,210.89,4.2651]
[1759156289380,7.69,211.01,210.9,4.2648]
[1759156290075,7.69,211.01,210.87,12.1956]
[1759156290375,7.69,211.01,210.87,7.93]
[1759156290681,4.2633,210.99,210.87,7.93]
[1759156290873,7.69,211.01,210.89,4.265]
[1759156291279,7.69,210.97,210.87,7.93]
[1759156291479,7.69,210.97,210.87,21.94349608]
[1759156291679,11.9538,210.97,210.87,12.1954]
[1759156292180,7.69,210.97,210.87,7.93]
[1759156292382,4.2632,211.0,210.87,7.93]
[1759156293476,11.9535,210.98,210.87,7.93]
[1759156294578,11.9535,210.98,210.89,4.2652]
[1759156295581,7.69,210.98,210.9,4.2648]
[1759156296082,4.263,211.0,210.91,7.93]
[1759156296878,4.2634,210.99,210.91,7.93]
[1759156298084,4.2635,210.98,210.87,18.20363926]
[1759156298286,7.69,210.97,210.86,7.93]
[1759156298583,74.014,210.97,210.86,7.93]
[1759156298787,7.69,210.94,210.81,7.93]
[1759156298977,7.69,210.94,210.81,22.11104084]
[1759156299591,7.69,210.94,210.82,7.93]
[1759156299783,66.3087,211.02,210.85,7.93]
[1759156299977,7.69,211.01,210.85,7.93]
[1759156300682,74.007,210.99,210.85,7.93]
[1759156300882,7.69,210.99,210.85,7.93]
[1759156301284,66.3235,210.97,210.85,7.93]
[1759156301487,74.0232,210.94,210.81,14.48975954]
[1759156301686,7.69,210.92,210.8,7.93]
[1759156302279,7.69,210.92,210.8,21.97659544]
[1759156302589,7.69,210.92,210.8,7.93]
[1759156304092,4.2656,210.88,210.8,12.197]
[1759156304781,4.2658,210.87,210.8,7.93]
[1759156304986,7.69,210.87,210.75,7.93]
[1759156305188,127.81,210.87,210.75,7.93]
[1759156305494,7.69,210.84,210.73,4.2684]
[1759156305788,7.69,210.84,210.73,13.99577344]
[1759156306086,7.69,210.84,210.71,66.4042]
[1759156306290,7.69,210.84,210.72,7.93]
[1759156306882,4.2656,210.88,210.77,7.93]
[1759156307192,7.69,210.89,210.77,7.93]
[1759156307694,7.69,210.89,210.79,7.93]
[1759156308187,84.65,210.93,210.79,7.93]
[1759156308987,7.69,210.93,210.79,7.93]
[1759156309990,4.2648,210.92,210.79,7.93]
[1759156310590,4.2648,210.92,210.84,4.2662]
[1759156311093,127.81,210.93,210.79,7.93]
[1759156311293,7.69,210.93,210.79,7.93]
[1759156311493,11.9546,210.93,210.79,7.93]
[1759156312594,11.9546,210.93,210.84,4.2662]
[1759156313094,4.2647,210.92,210.79,7.93]
[1759156313597,7.69,210.93,210.82,4.2666]
[1759156314298,3.26890035,210.92,210.82,4.2666]
[1759156314592,7.98,210.91,210.8,4.2668]
[1759156314995,7.98,210.91,210.79,7.93]
[1759156315197,4.2651,210.9,210.81,4.2667]
[1759156315595,4.2651,210.9,210.79,7.93]
[1759156316297,4.2651,210.9,210.81,4.2668]
[1759156316488,4.2654,210.89,210.79,7.93]
[1759156317398,12.2448,210.91,210.79,7.93]
[1759156317799,12.2448,210.91,210.83,4.2663]
[1759156318902,7.98,210.91,210.84,4.2661]
[1759156319205,120.1,210.97,210.83,7.93]
[1759156319407,3.27806884,210.96,210.83,7.93]
[1759156319603,7.54206884,210.95,210.88,4.2652]
[1759156319813,7.98,210.98,210.87,7.93]
[1759156320009,71.64488784,211.06,210.88,66.3513]
[1759156320208,4.2623,211.04,210.89,7.93]
[1759156320413,3.27751831,211.04,210.95,7.93]
[1759156320602,7.98,211.08,210.95,7.93]
[1759156320906,7.98,211.06,210.95,7.93]
[1759156321313,4.2614,211.08,210.99,4.2632]
[1759156321604,7.98,211.06,210.9,55.95]
[1759156321810,4.2621,211.05,210.95,4.2638]
[1759156322014,4.2621,211.05,210.96,7.93]
[1759156322411,7.98,211.06,210.96,7.93]
[1759156322608,4.2623,211.04,210.96,7.93]
[1759156323316,7.98,211.06,210.96,21.96594197]
[1759156324413,4.2614,211.08,210.98,4.2634]
[1759156324614,110.9,211.1,210.96,21.96594197]
[1759156325009,4.2613,211.09,211.0,4.263]
[1759156325210,7.98,211.1,211.0,4.263]
[1759156325413,7.98,211.1,211.01,4.2626]
[1759156326409,7.98,211.1,211.0,7.93]
[1759156326616,4.2622,211.05,210.96,14.03594197]
[1759156326817,7.98,211.08,210.95,7.93]
[1759156327017,7.98,211.08,210.96,4.2638]
[1759156327515,4.2616,211.07,210.97,4.2634]
[1759156327815,4.2616,211.07,210.97,7.93]
[1759156328012,7.98,211.08,210.98,4.2632]
[1759156328518,7.98,211.08,210.97,7.93]
[1759156328711,4.2616,211.07,210.97,12.1936]
[1759156330511,7.98,211.08,210.97,7.93]
[1759156331219,66.292,211.07,210.97,7.93]
[1759156331417,66.3017,211.04,210.96,14.42749144]
[1759156331717,127.98,211.03,210.9,4.2649]
[1759156332224,7.98,210.99,210.88,7.93]
[1759156332822,7.98,210.99,210.88,12.1952]
[1759156333119,7.98,211.05,210.88,7.93]
[1759156333324,4.2626,211.02,210.89,66.3472]
[1759156333514,7.98,211.05,210.91,7.93]
[1759156333710,7.98,211.05,210.94,7.52]
[1759156334224,7.83,211.1,210.96,66.3264]
[1759156334425,7.83,211.1,210.98,7.52]
[1759156335120,7.83,211.1,210.98,73.8394]
[1759156335325,7.83,211.1,210.99,7.52]
[1759156336518,7.83,211.15,211.03,7.52]
[1759156338324,7.83,211.15,211.06,4.2617]
[1759156338525,7.83,211.15,211.03,7.52]
[1759156339027,4.2609,211.11,211.03,7.52]
[1759156339219,7.83,211.11,211.01,5.4538926]
[1759156339423,7.83,211.11,210.99,7.52]
[1759156339818,119.96,211.1,210.99,7.52]
[1759156340019,7.83,211.09,210.99,7.52]
[1759156340223,127.79,211.09,210.99,7.52]
[1759156340526,7.83,211.09,210.99,7.52]
[1759156341124,7.83,211.09,210.99,11.783]
[1759156341626,12.0913,211.09,210.99,11.783]
[1759156342429,7.83,211.09,211.0,4.2628]
[1759156342628,7.83,211.16,211.0,7.52]
[1759156342925,7.83,211.14,211.0,7.52]
[1759156343422,66.2732,211.13,211.0,7.52]
[1759156343628,7.83,211.1,211.0,7.52]
[1759156343930,4.262,211.06,210.97,4.2636]
[1759156344225,11.582,211.06,210.97,4.2636]
[1759156344426,7.32,211.06,210.97,4.2636]
[1759156344925,7.32,211.06,210.98,4.2632]
[1759156345421,7.32,211.06,210.99,4.263]
[1759156345721,7.32,211.13,211.0,7.32]
[1759156345924,68.5,211.13,211.0,7.32]
[1759156346117,4.2612,211.1,211.0,7.32]
[1759156346324,11.5812,211.1,211.0,7.32]
[1759156346725,11.5812,211.1,211.01,4.2626]
[1759156346926,7.32,211.17,211.01,66.3104]
[1759156347124,66.2396,211.24,211.12,7.32]
[1759156347125,7.32,211.24,211.12,7.32]
[1759156347318,11.5781,211.24,211.12,7.32]
[1759156347625,7.32,211.24,211.12,7.32]
[1759156347826,7.32,211.24,211.12,11.5806]
[1759156348327,7.32,211.26,211.01,318.26]
[1759156348523,7.32,211.15,211.03,12.7738926]
[1759156348828,7.32,211.15,211.04,7.32]
[1759156349023,7.32,211.19,211.04,7.32]
[1759156350118,7.32,211.19,211.06,4.2617]
[1759156350318,7.32,211.19,211.05,7.32]
[1759156350732,7.32,211.19,211.08,4.2613]
[1759156350931,7.32,211.19,211.08,11.5813]
[1759156351525,7.32,211.19,211.08,7.32]
[1759156352025,7.32,211.25,211.11,4.2606]
[1759156352224,115.98,211.24,211.11,11.5806]
[1759156352725,7.32,211.25,211.15,5.4538926]
[1759156352925,66.2041,211.35,211.19,5.4538926]
[1759156352926,26.96,211.33,211.19,5.4538926]
[1759156353127,7.32,211.32,211.19,5.4538926]
[1759156353332,7.32,211.32,211.2,7.32]
[1759156353535,7.32,211.31,211.16,5.4538926]
[1759156354332,7.32,211.31,211.17,4.2595]
[1759156354733,87.08,211.31,211.17,4.2595]
[1759156355028,124.2569,211.3,211.17,18.20909766]
[1759156355331,7.32,211.29,211.16,5.4538926]
[1759156355723,4.2574,211.28,211.16,5.4538926]
[1759156355921,7.32,211.29,211.2,4.2589]
[1759156356228,7.32,211.29,211.17,7.32]
[1759156356428,7.32,211.35,211.25,4.2579]
[1759156356824,318.26,211.39,211.25,7.32]
[1759156357027,318.26,211.39,211.27,4.2574]
[1759156357426,66.1546,211.51,211.33,5.4538926]
[1759156357627,66.1546,211.51,211.34,7.32]
[1759156357628,79.32,211.5,211.34,7.32]
[1759156358023,7.32,211.49,211.34,7.32]
[1759156358230,7.32,211.46,211.34,7.32]
[1759156358432,38.64,211.45,211.34,7.32]
[1759156358634,7.32,211.46,211.34,7.32]
[1759156358635,7.32,211.46,211.35,5.4538926]
[1759156360436,73.49,211.46,211.34,7.32]
[1759156360634,7.32,211.42,211.29,12.7738926]
[1759156361231,4.255,211.4,211.29,7.32]
[1759156361435,7.32,211.38,211.29,7.32]
[1759156361732,7.32,211.38,211.24,5.4538926]
[1759156362040,120.38,211.37,211.24,5.4538926]
[1759156362237,11.5754,211.38,211.24,5.4538926]
[1759156362530,108.7154,211.38,211.24,5.4538926]
[1759156362739,120.36,211.37,211.24,5.4538926]
[1759156363436,11.5754,211.38,211.25,4.2579]
[1759156363636,41.48,211.37,211.25,4.2579]
[1759156364229,41.48,211.37,211.24,5.4538926]
[1759156364431,4.2557,211.36,211.24,5.4538926]
[1759156364835,4.2561,211.34,211.23,7.32]
[1759156365338,7.32,211.33,211.2,65.0338926]
[1759156365637,7.32,211.33,211.17,7.32]
[1759156365638,7.32,211.32,211.17,7.32]
[1759156365837,7.32,211.3,211.17,7.32]
[1759156366038,108.78,211.29,211.17,7.32]
[1759156366435,7.32,211.26,211.16,13.95811563]
[1759156366637,66.2301,211.27,210.91,21.8822845]
[1759156366638,7.32,211.24,211.1,5.4538926]
[1759156366946,11.579,211.2,211.07,5.4538926]
[1759156367141,117.179,211.2,211.07,5.4538926]
[1759156367349,117.179,211.2,211.08,4.2613]
[1759156367641,11.579,211.2,211.08,4.2613]
[1759156367834,102.56,211.19,211.08,4.2613]
[1759156368438,7.32,211.25,211.11,5.4538926]
[1759156368635,7.32,211.25,211.16,5.4538926]
[1759156369339,7.32,211.25,211.12,12.7738926]
[1759156370134,7.32,211.25,211.12,17.0342926]
[1759156370340,7.32,211.25,211.12,12.7738926]
[1759156370639,127.7,211.25,211.12,79.0494926]
[1759156370839,7.32,211.25,211.16,11.5796]
[1759156371045,7.32,211.25,211.12,5.4538926]
[1759156371540,127.72,211.25,211.12,5.4538926]
[1759156371945,127.72,211.25,211.13,4.2603]
[1759156372245,120.42,211.24,211.13,4.2603]
[1759156372641,120.42,211.24,211.15,4.2599]
[1759156372836,7.32,211.25,211.15,4.2599]
[1759156373043,120.34,211.24,211.15,4.2599]
[1759156373243,120.34,211.24,211.13,7.32]
[1759156373543,127.64,211.25,211.13,7.32]
[1759156373738,127.62,211.25,211.13,7.32]
[1759156374845,127.62,211.25,211.13,11.5802]
[1759156376541,7.77,211.24,211.12,5.4538926]
[1759156376843,7.77,211.22,211.08,12.7838926]
[1759156377249,7.77,211.19,211.08,12.7838926]
[1759156377447,120.16,211.18,211.08,12.7838926]
[1759156377744,120.16,211.18,211.06,14.37162522]
[1759156377953,7.77,211.17,211.03,12.7838926]
[1759156378247,7.77,211.17,211.03,7.33]
[1759156378450,12.0296,211.17,211.05,4.2619]
[1759156378747,12.0296,211.17,211.03,7.33]
[1759156378748,120.22,211.16,211.03,73.6331]
[1759156378943,7.77,211.15,211.03,7.33]
[1759156379149,4.2604,211.14,211.03,7.33]
[1759156379339,7.77,211.13,211.03,14.47026933]
[1759156379538,7.77,211.13,210.98,7.33]
[1759156380043,4.2606,211.12,210.98,7.33]
[1759156380250,66.2742,211.13,210.98,7.33]
[1759156380452,7.77,211.12,210.98,7.33]
[1759156380663,66.2905,211.08,210.97,13.87898245]
[1759156380949,7.77,211.06,210.94,1.27047269]
[1759156381255,7.77,211.01,210.91,7.33]
[1759156381451,74.0811,211.01,210.83,7.33]
[1759156381655,7.77,211.01,210.84,4.2662]
[1759156381853,64.52,211.0,210.85,7.33]
[1759156382261,74.0875,210.99,210.85,7.33]
[1759156382555,7.77,210.97,210.85,7.33]
[1759156383147,4.2623,211.04,210.86,66.3571]
[1759156383349,7.77,211.03,210.87,7.33]
[1759156383552,65.6,211.02,210.89,7.33]
[1759156383757,7.77,211.03,210.89,7.33]
[1759156383758,120.4,211.01,210.89,7.33]
[1759156384654,120.4,211.01,210.91,4.2647]
[1759156385051,120.4,211.01,210.89,7.33]
[1759156385452,7.77,211.03,210.89,7.33]
[1759156385648,120.3,211.02,210.89,7.33]
[1759156386066,7.77,211.03,210.89,7.33]
[1759156386261,120.32,211.01,210.89,7.33]
[1759156386963,7.77,211.1,210.94,16.07773571]
[1759156387164,7.77,211.1,210.97,7.33]
[1759156387455,7.77,211.1,210.98,66.319]
[1759156387661,66.2493,211.21,211.01,7.33]
[1759156387662,58.4,211.14,211.01,7.33]
[1759156387864,7.77,211.17,211.01,7.33]
[1759156388055,120.44,211.16,211.01,7.33]
[1759156388254,120.44,211.15,211.01,7.33]
[1759156388454,120.42,211.14,211.01,7.33]
[1759156388966,7.77,211.17,211.05,7.33]
[1759156389555,120.44,211.19,211.05,73.6276]
[1759156389766,128.21,211.19,211.05,7.33]
[1759156389958,7.77,211.19,211.08,7.33]
[1759156391565,7.77,211.19,211.01,82.38723571]
[1759156391858,7.77,211.19,211.04,7.33]
[1759156392566,7.77,211.19,211.05,4.262]
[1759156393955,4.2594,211.18,211.05,4.262]
[1759156394163,74.2956,211.19,211.04,7.33]
[1759156394460,66.2637,211.16,211.01,8.74773571]
[1759156394658,8.04,211.13,210.99,12.2531]
[1759156395059,8.04,211.13,210.99,7.99]
[1759156395365,8.04,211.09,210.99,7.99]
[1759156395562,186.5374,211.18,210.99,7.99]
[1759156395563,66.2574,211.18,210.99,7.99]
[1759156395867,8.04,211.13,211.0,4.2629]
[1759156396059,8.04,211.13,210.99,7.99]
[1759156396666,8.04,211.09,210.99,12.2532]
[1759156396862,8.04,211.09,210.99,7.99]
[1759156397468,8.04,211.09,210.93,7.99]
[1759156397765,8.04,211.05,210.88,7.99]
[1759156397962,8.04,211.03,210.88,7.99]
[1759156399165,8.04,211.03,210.9,4.265]
[1759156399361,120.32,211.02,210.9,4.265]
[1759156399766,120.32,211.02,210.88,7.99]
[1759156399965,8.04,211.01,210.88,7.99]
[1759156400471,4.263,211.0,210.89,4.2652]
[1759156400770,8.04,211.01,210.89,4.2652]
[1759156401769,8.04,211.01,210.86,4.2656]
[1759156402076,8.04,210.99,210.83,22.12165861]
[1759156402575,76.3,210.98,210.85,66.361]
[1759156403663,76.3,210.98,210.87,4.2655]
[1759156403871,76.3,210.98,210.83,22.12165861]
[1759156404070,7.72,210.97,210.83,22.12165861]
[1759156404569,11.9836,210.97,210.84,4.266]
[1759156405072,7.72,210.94,210.83,22.12165861]
[1759156405572,7.72,210.94,210.77,7.57]
[1759156405978,7.72,210.94,210.8,4.267]
[1759156406368,7.72,210.94,210.77,7.57]
[1759156406369,7.72,210.94,210.82,4.2666]
[1759156407076,7.72,210.94,210.82,18.348852]
[1759156407373,7.72,210.94,210.79,4.267]
[1759156407572,66.336,210.93,210.79,4.267]
[1759156407878,7.72,210.92,210.8,7.57]
[1759156408175,7.72,210.92,210.81,66.373]
[1759156408475,7.72,210.92,210.8,7.57]
[1759156408876,128.02,210.92,210.81,4.2668]
[1759156409177,128.02,210.92,210.8,7.57]
[1759156410673,128.02,210.92,210.82,4.2666]
[1759156411068,4.2648,210.91,210.8,7.57]
[1759156411267,4.2648,210.91,210.75,45.96971672]
[1759156411268,74.0626,210.91,210.75,7.57]
[1759156411468,4.2652,210.9,210.75,7.57]
[1759156411673,7.72,210.91,210.77,4.2674]
[1759156411869,7.72,210.91,210.75,7.57]
[1759156412380,7.72,210.87,210.77,4.2676]
[1759156412781,7.72,210.87,210.75,7.57]
[1759156412982,11.9858,210.87,210.77,4.2676]
[1759156413880,7.72,210.87,210.79,4.2672]
[1759156414475,7.72,210.87,210.78,7.57]
[1759156414778,66.3611,210.85,210.75,14.50734414]
[1759156414985,11.9871,210.8,210.7,7.57]
[1759156415178,7.72,210.8,210.7,7.57]
[1759156415580,7.72,210.8,210.73,4.2684]
[1759156415981,7.72,210.8,210.7,73.9777]
[1759156416183,35.44,210.84,210.75,4.2679]
[1759156416981,35.44,210.84,210.72,7.57]
[1759156416982,35.44,210.84,210.76,4.2676]
[1759156418281,7.72,210.85,210.76,7.57]
[1759156418481,97.04,210.88,210.76,7.57]
[1759156418885,7.72,210.85,210.71,7.57]
[1759156421083,4.2663,210.84,210.71,7.57]
[1759156421290,7.72,210.85,210.73,66.3978]
[1759156421486,7.72,210.85,210.74,7.57]
[1759156421686,7.72,210.85,210.74,11.8381]
[1759156422088,7.72,210.85,210.74,7.57]
[1759156422495,7.72,210.85,210.76,4.2677]
[1759156423297,7.72,210.85,210.74,7.57]
[1759156423797,11.9861,210.85,210.74,7.57]
[1759156424296,7.72,210.85,210.76,4.2678]
[1759156424497,7.72,210.85,210.74,7.57]
[1759156424694,66.3328,210.94,210.78,7.57]
[1759156424898,11.9853,210.89,210.78,7.57]
[1759156425290,7.72,210.89,210.78,7.57]
[1759156425491,4.2658,210.87,210.78,7.57]
[1759156425998,4.2658,210.87,210.78,11.8373]
[1759156426194,11.9852,210.89,210.78,7.57]
[1759156426597,7.72,210.89,210.78,7.57]
[1759156427294,7.72,210.89,210.82,4.2665]
[1759156429005,7.72,210.89,210.83,4.2663]
[1759156429501,7.72,210.89,210.78,73.9514]
[1759156429502,7.72,210.89,210.8,4.2669]
[1759156429702,7.72,210.89,210.76,7.57]
[1759156430506,11.9853,210.89,210.77,66.3858]
[1759156430704,7.72,210.89,210.77,66.3858]
[1759156430898,7.72,210.89,210.78,7.57]
[1759156431708,74.0687,210.89,210.73,7.57]
[1759156432606,4.2664,210.84,210.77,4.2675]
[1759156433609,7.72,210.85,210.76,7.57]
[1759156434110,79.26,210.87,210.76,7.57]
[1759156434708,83.5258,210.87,210.78,4.2674]
[1759156434912,79.26,210.87,210.78,4.2674]
[1759156435106,79.26,210.87,210.76,7.57]
[1759156435606,4.2662,210.85,210.77,4.2675]
[1759156436008,7.49,210.86,210.76,7.57]
[1759156436603,79.26,210.87,210.8,7.38]
[1759156436800,7.49,210.91,210.8,7.38]
[1759156437602,4.2652,210.9,210.83,4.2662]
[1759156438002,7.49,210.91,210.8,7.38]
[1759156438198,4.2653,210.89,210.82,4.2665]
[1759156439108,11.7548,210.91,210.8,7.38]
[1759156439309,7.49,210.91,210.8,7.38]
[1759156439505,7.49,210.91,210.79,66.3792]
[1759156439506,8.39782149,210.96,210.85,7.38]
[1759156439711,7.49,211.0,210.87,7.38]
[1759156439913,4.2635,210.98,210.9,4.265]
[1759156440311,4.2635,210.98,210.87,7.38]
[1759156440510,4.2635,210.98,210.88,4.2654]
[1759156440704,120.12,210.99,210.87,7.38]
[1759156440705,325.85,210.97,210.87,7.38]
[1759156441100,7.49,210.93,210.82,12.8344571]
[1759156441306,7.49,210.93,210.82,7.38]
[1759156441704,7.49,210.93,210.85,4.2658]
[1759156441911,7.49,210.93,210.85,7.38]
[1759156442306,322.6237,210.97,210.85,7.38]
[1759156442501,3.28413245,210.96,210.85,7.38]
[1759156442707,3.28413245,210.96,210.86,7.38]
[1759156443516,3.28413245,210.96,210.9,4.2648]
[1759156443816,120.12,210.99,210.9,7.38]
[1759156444514,11.7524,211.03,210.9,7.38]
[1759156444515,7.49,211.03,210.92,7.38]
[1759156444717,120.1,211.04,210.98,11.6434]
[1759156445015,3.28326025,211.03,210.91,7.38]
[1759156445210,127.59,211.04,210.91,7.38]
[1759156445516,127.59,211.04,210.95,4.2639]
[1759156445517,3.28191762,211.03,210.95,4.2639]
[1759156445708,3.28191762,211.03,210.95,11.6439]
[1759156445905,127.59,211.04,210.95,11.6439]
[1759156446714,127.59,211.04,210.95,21.60990205]
[1759156446915,10.77029866,211.03,210.9,7.38]
[1759156447113,3.28029866,211.02,210.9,7.38]
[1759156447310,4.2629,211.01,210.9,11.6448]
[1759156447509,3.28029866,211.02,210.9,7.38]
[1759156447912,7.49,211.03,210.9,7.38]
[1759156448718,7.49,211.03,210.9,21.83220539]
[1759156448915,7.49,211.03,210.9,7.38]
[1759156449319,4.2632,210.99,210.9,7.38]
[1759156449808,11.7532,210.99,210.9,7.38]
[1759156450113,11.7532,210.99,210.86,7.38]
[1759156450114,66.318,210.99,210.86,7.38]
[1759156450413,66.318,210.99,210.86,21.80224347]
[1759156450607,7.49,210.98,210.86,7.38]